fUST/lending_fUST_20250511
["ID","MTS","AMOUNT","RATE_DAILY","PERIOD"]
[360651585,1746916239083,-400.0,8.767e-05,2]
[360651586,1746916239092,-400.0,8.767e-05,2]
[360651587,1746916239104,-400.0,8.767e-05,2]
[360651588,1746916239113,-400.0,8.767e-05,2]
[360651589,1746916239122,-453.59,8.767e-05,2]
[360651590,1746916239133,-400.0,8.767e-05,2]
[360651591,1746916239143,-312.6,8.767e-05,2]
[360651592,1746916239152,-504.08,8.767e-05,2]
[360651593,1746916239162,-400.0,8.767e-05,2]
[360651594,1746916239171,-400.0,8.767e-05,2]
[360651595,1746916239182,-400.0,8.767e-05,2]
[360651596,1746916239193,-400.0,8.767e-05,2]
[360651597,1746916239202,-415.97,8.767e-05,2]
[360651598,1746916239211,-438.46,8.767e-05,2]
[360651599,1746916239221,-400.0,8.767e-05,2]
[360651600,1746916239230,-400.0,8.767e-05,2]
[360651601,1746916239240,-400.0,8.767e-05,2]
[360651602,1746916239250,-400.0,8.767e-05,2]
[360651603,1746916239259,-500.0,8.823e-05,2]
[360651604,1746916239270,-500.0,8.85e-05,2]
[360651605,1746916239280,-500.0,8.878e-05,2]
[360651606,1746916239289,-420.0,8.902e-05,2]
[360651607,1746916239299,-817.0,8.902e-05,2]
[360651608,1746916239310,-207.36,8.905e-05,2]
[360651609,1746916239319,-400.0,9.041e-05,2]
[360651610,1746916239330,-400.0,9.041e-05,2]
[360651611,1746916239346,-400.0,9.041e-05,2]
[360651612,1746916239355,-250.48,9.041e-05,2]
[360651613,1746916239365,-520.20339573,9.041e-05,2]
[360651614,1746916239374,-480.45,9.041e-05,2]
[360651615,1746916239384,-158.78,9.041e-05,2]
[360651616,1746916239394,-400.0,9.041e-05,2]
[360651617,1746916239404,-428.25,9.041e-05,2]
[360651618,1746916239413,-535.71,9.041e-05,2]
[360651619,1746916239423,-400.0,9.041e-05,2]
[360651620,1746916239433,-318.7,9.041e-05,2]
[360651621,1746916239442,-400.0,9.041e-05,2]
[360651622,1746916239451,-318.82,9.041e-05,2]
[360651623,1746916239461,-400.0,9.041e-05,2]
[360651624,1746916239473,-400.0,9.041e-05,2]
[360651625,1746916239483,-400.0,9.041e-05,2]
[360651626,1746916239492,-400.0,9.041e-05,2]
[360651627,1746916239502,-348.88,9.041e-05,2]
[360651628,1746916239514,-400.0,9.041e-05,2]
[360651629,1746916239523,-400.0,9.041e-05,2]
[360651630,1746916239535,-247.66,9.041e-05,2]
[360651631,1746916239548,-1095.7,9.041e-05,2]
[360651632,1746916239558,-400.0,9.041e-05,2]
[360651633,1746916239567,-400.0,9.041e-05,2]
[360651634,1746916239577,-400.0,9.041e-05,2]
[360651635,1746916239586,-400.0,9.041e-05,2]
[360651636,1746916239595,-400.0,9.041e-05,2]
[360651637,1746916239605,-400.0,9.041e-05,2]
[360651638,1746916239615,-495.15,9.041e-05,2]
[360651639,1746916239624,-400.0,9.041e-05,2]
[360651640,1746916239634,-400.0,9.041e-05,2]
[360651641,1746916239643,-199.05,9.041e-05,2]
[360651642,1746916239653,-400.0,9.041e-05,2]
[360651643,1746916239662,-400.0,9.041e-05,2]
[360651644,1746916239671,-572.03,9.041e-05,2]
[360651645,1746916239681,-400.0,9.041e-05,2]
[360651646,1746916239690,-400.0,9.041e-05,2]
[360651647,1746916239701,-400.0,9.041e-05,2]
[360651648,1746916239711,-216.42,9.041e-05,2]
[360651649,1746916239720,-400.0,9.041e-05,2]
[360651650,1746916239729,-400.0,9.041e-05,2]
[360651651,1746916239738,-400.0,9.041e-05,2]
[360651652,1746916239747,-400.0,9.041e-05,2]
[360651653,1746916239756,-400.0,9.041e-05,2]
[360651654,1746916239766,-400.0,9.041e-05,2]
[360651655,1746916239775,-400.0,9.041e-05,2]
[360651656,1746916239785,-512.09,9.041e-05,2]
[360651657,1746916239794,-400.0,9.041e-05,2]
[360651658,1746916239804,-400.0,9.041e-05,2]
[360651659,1746916239814,-415.97,9.041e-05,2]
[360651660,1746916239824,-400.0,9.041e-05,2]
[360651661,1746916239835,-423.25,9.041e-05,2]
[360651662,1746916239846,-400.0,9.041e-05,2]
[360651663,1746916239857,-500.0,9.111e-05,2]
[360651664,1746916239866,-500.0,9.111e-05,2]
[360651665,1746916239876,-500.0,9.111e-05,2]
[360651666,1746916239885,-500.0,9.111e-05,2]
[360651667,1746916239895,-500.0,9.111e-05,2]
[360651668,1746916239904,-500.0,9.111e-05,2]
[360651669,1746916239915,-500.0,9.111e-05,2]
[360651670,1746916239926,-500.0,9.111e-05,2]
[360651671,1746916239935,-500.0,9.111e-05,2]
[360651672,1746916239946,-500.0,9.111e-05,2]
[360651673,1746916239956,-500.0,9.111e-05,2]
[360651674,1746916239965,-500.0,9.132e-05,2]
[360651675,1746916239976,-500.0,9.174e-05,2]
[360651676,1746916239986,-500.0,9.195e-05,2]
[360651677,1746916239995,-500.0,9.195e-05,2]
[360651678,1746916240005,-1990.26,9.2e-05,2]
[360651679,1746916240015,-500.0,9.221e-05,2]
[360651680,1746916240025,-500.0,9.246e-05,2]
[360651681,1746916240036,-500.0,9.246e-05,2]
[360651682,1746916240047,-500.0,9.246e-05,2]
[360651683,1746916240059,-500.0,9.246e-05,2]
[360651684,1746916240068,-500.0,9.246e-05,2]
[360651685,1746916240078,-250.0,9.3e-05,2]
[360651686,1746916240087,-400.0,9.315e-05,2]
[360651687,1746916240097,-391.23,9.315e-05,2]
[360651688,1746916240108,-229.5,9.315e-05,2]
[360651689,1746916240117,-400.0,9.315e-05,2]
[360651690,1746916240127,-400.0,9.315e-05,2]
[360651691,1746916240137,-400.0,9.315e-05,2]
[360651692,1746916240152,-400.0,9.315e-05,2]
[360651703,1746916240318,-400.0,9.315e-05,2]
[360651705,1746916240327,-400.0,9.315e-05,2]
[360651706,1746916240337,-314.58,9.315e-05,2]
[360651707,1746916240347,-1095.7,9.315e-05,2]
[360651708,1746916240357,-427.96572011,9.315e-05,2]
[360651709,1746916240366,-470.86,9.315e-05,2]
[360651711,1746916240376,-400.0,9.315e-05,2]
[360651712,1746916240386,-400.0,9.315e-05,2]
[360651713,1746916240395,-400.0,9.315e-05,2]
[360651714,1746916240405,-400.0,9.315e-05,2]
[360651715,1746916240415,-495.15,9.315e-05,2]
[360651716,1746916240424,-400.0,9.315e-05,2]
[360651717,1746916240434,-272.04611312,9.315e-05,2]
[360651718,1746916240447,-383.93,9.315e-05,2]
[360651719,1746916240457,-400.0,9.315e-05,2]
[360651720,1746916240469,-572.03,9.315e-05,2]
[360651721,1746916240479,-400.0,9.315e-05,2]
[360651722,1746916240489,-400.0,9.315e-05,2]
[360651723,1746916240499,-400.0,9.315e-05,2]
[360651724,1746916240509,-400.0,9.315e-05,2]
[360651725,1746916240519,-400.0,9.315e-05,2]
[360651726,1746916240529,-400.0,9.315e-05,2]
[360651727,1746916240538,-400.0,9.315e-05,2]
[360651728,1746916240550,-400.0,9.315e-05,2]
[360651729,1746916240560,-400.0,9.315e-05,2]
[360651730,1746916240570,-400.0,9.315e-05,2]
[360651731,1746916240579,-400.0,9.315e-05,2]
[360651732,1746916240589,-406.19,9.315e-05,2]
[360651733,1746916240599,-415.97,9.315e-05,2]
[360651734,1746916240609,-526.96,9.315e-05,2]
[360651735,1746916240618,-400.0,9.315e-05,2]
[360651736,1746916240628,-404.0,9.469e-05,2]
[360651737,1746916240638,-228.431,9.488e-05,2]
[360651738,1746916240648,-460.72819658,9.589e-05,2]
[360651739,1746916240659,-311.79536076,9.589e-05,2]
[360651741,1746916240669,-400.0,9.589e-05,2]
[360651743,1746916240678,-400.0,9.589e-05,2]
[360651744,1746916240688,-341.82,9.589e-05,2]
[360651745,1746916240698,-400.0,9.589e-05,2]
[360651746,1746916240707,-400.0,9.589e-05,2]
[360651747,1746916240716,-1095.7,9.589e-05,2]
[360651748,1746916240726,-400.0,9.589e-05,2]
[360651749,1746916240735,-400.0,9.589e-05,2]
[360651750,1746916240745,-400.0,9.589e-05,2]
[360651752,1746916240754,-400.0,9.589e-05,2]
[360651754,1746916240764,-495.15,9.589e-05,2]
[360651756,1746916240774,-307.67,9.589e-05,2]
[360651758,1746916240784,-472.58734698,9.589e-05,2]
[360651760,1746916240793,-572.03,9.589e-05,2]
[360651762,1746916240803,-400.0,9.589e-05,2]
[360651764,1746916240817,-400.0,9.589e-05,2]
[360651766,1746916240827,-400.0,9.589e-05,2]
[360651768,1746916240837,-278.65,9.589e-05,2]
[360651770,1746916240846,-400.0,9.589e-05,2]
[360651772,1746916240856,-300.68,9.589e-05,2]
[360651774,1746916240866,-400.0,9.589e-05,2]
[360651776,1746916240875,-400.0,9.589e-05,2]
[360651778,1746916240885,-400.0,9.589e-05,2]
[360651780,1746916240894,-400.0,9.589e-05,2]
[360651782,1746916240904,-295.17,9.589e-05,2]
[360651784,1746916240914,-415.97,9.589e-05,2]
[360651786,1746916240923,-400.0,9.589e-05,2]
[360651789,1746916240936,-587.0,9.793e-05,2]
[360651791,1746916240947,-400.0,9.863e-05,2]
[360651793,1746916240957,-400.0,9.863e-05,2]
[360651795,1746916240966,-400.0,9.863e-05,2]
[360651797,1746916240976,-400.0,9.863e-05,2]
[360651799,1746916240986,-1095.7,9.863e-05,2]
[360651801,1746916240995,-400.0,9.863e-05,2]
[360651803,1746916241005,-400.0,9.863e-05,2]
[360651805,1746916241015,-400.0,9.863e-05,2]
[360651807,1746916241025,-329.84,9.863e-05,2]
[360651809,1746916241035,-495.15,9.863e-05,2]
[360651811,1746916241044,-572.03,9.863e-05,2]
[360651813,1746916241053,-172.13,9.863e-05,2]
[360651815,1746916241063,-400.0,9.863e-05,2]
[360651817,1746916241073,-400.0,9.863e-05,2]
[360651819,1746916241082,-400.0,9.863e-05,2]
[360651821,1746916241093,-400.0,9.863e-05,2]
[360651823,1746916241103,-400.0,9.863e-05,2]
[360651825,1746916241112,-400.0,9.863e-05,2]
[360651827,1746916241121,-313.13,9.863e-05,2]
[360651829,1746916241131,-415.97,9.863e-05,2]
[360651831,1746916241142,-400.0,9.863e-05,2]
[360651833,1746916241152,-30937.33725216,9.948e-05,2]
[360651835,1746916241161,-12619.28597579,9.992e-05,2]
[360651837,1746916241170,-842.34118046,9.992e-05,2]
[360651839,1746916241180,-160.0,9.992e-05,2]
[360651841,1746916241189,-160.0,9.992e-05,2]
[360651843,1746916241199,-422.13686889,9.992e-05,2]
[360651845,1746916241209,-160.0,9.992e-05,2]
[360651847,1746916241219,-160.0,9.992e-05,2]
[360651849,1746916241230,-160.0,9.992e-05,2]
[360651851,1746916241240,-160.0,9.992e-05,2]
[360651853,1746916241249,-212.13671436,9.992e-05,2]
[360651855,1746916241259,-2200.0,0.0001,2]
[360651857,1746916241270,-30937.33725232,0.0001,2]
[360651859,1746916241280,-30937.33725216,0.0001,2]
[360651861,1746916241290,-1128.87260837,0.00010005,2]
[360651863,1746916241300,-400.0,0.00010136,2]
[360651865,1746916241310,-400.0,0.00010136,2]
[360651866,1746916241320,-400.0,0.00010136,2]
[360651867,1746916241329,-400.0,0.00010136,2]
[360651868,1746916241339,-1095.7,0.00010136,2]
[360651870,1746916241348,-400.0,0.00010136,2]
[360651872,1746916241357,-400.0,0.00010136,2]
[360651874,1746916241367,-400.0,0.00010136,2]
[360651876,1746916241377,-495.15,0.00010136,2]
[360651878,1746916241388,-572.03,0.00010136,2]
[360651880,1746916241398,-179.13311185,0.00010136,2]
[360651882,1746916241407,-400.0,0.00010136,2]
[360651883,1746916241416,-400.0,0.00010136,2]
[360651885,1746916241427,-400.0,0.00010136,2]
[360651887,1746916241436,-400.0,0.00010136,2]
[360651889,1746916241448,-400.0,0.00010136,2]
[360651891,1746916241457,-415.97,0.00010136,2]
[360651893,1746916241468,-400.0,0.00010136,2]
[360651895,1746916241478,-400.0,0.0001041,2]
[360651897,1746916241488,-400.0,0.0001041,2]
[360651899,1746916241497,-400.0,0.0001041,2]
[360651901,1746916241508,-400.0,0.0001041,2]
[360651903,1746916241517,-1095.7,0.0001041,2]
[360651905,1746916241527,-400.0,0.0001041,2]
[360651907,1746916241540,-400.0,0.0001041,2]
[360651910,1746916241554,-400.0,0.0001041,2]
[360651912,1746916241563,-495.15,0.0001041,2]
[360651914,1746916241572,-572.03,0.0001041,2]
[360651916,1746916241582,-400.0,0.0001041,2]
[360651918,1746916241591,-400.0,0.0001041,2]
[360651920,1746916241600,-400.0,0.0001041,2]
[360651922,1746916241610,-400.0,0.0001041,2]
[360651924,1746916241620,-400.0,0.0001041,2]
[360651926,1746916241630,-415.97,0.0001041,2]
[360651928,1746916241639,-400.0,0.0001041,2]
[360651929,1746916241648,-842.34118046,0.0001044,2]
[360651931,1746916241657,-160.0,0.0001044,2]
[360651933,1746916241667,-205.9021066,0.00010536,2]
[360651935,1746916241676,-151.37591629,0.00010536,2]
[360651937,1746916241686,-207.4,0.00010536,2]
[360651939,1746916241695,-400.0,0.00010684,2]
[360651941,1746916241705,-287.84496412,0.00010684,2]
[360651944,1746916241716,-400.0,0.00010684,2]
[360651946,1746916241727,-400.0,0.00010684,2]
[360651948,1746916241736,-1095.7,0.00010684,2]
[360651950,1746916241745,-400.0,0.00010684,2]
[360651952,1746916241755,-400.0,0.00010684,2]
[360651954,1746916241764,-400.0,0.00010684,2]
[360651956,1746916241774,-495.15,0.00010684,2]
[360651958,1746916241784,-572.03,0.00010684,2]
[360651960,1746916241793,-400.0,0.00010684,2]
[360651962,1746916241802,-265.69,0.00010684,2]
[360651964,1746916241813,-400.0,0.00010684,2]
[360651966,1746916241823,-400.0,0.00010684,2]
[360651968,1746916241833,-400.0,0.00010684,2]
[360651970,1746916241843,-415.97,0.00010684,2]
[360651972,1746916241857,-400.0,0.00010684,2]
[360651974,1746916241879,-823.0,0.00010772,2]
[360651976,1746916241890,-30937.33725216,0.00010872,2]
[360651978,1746916241900,-400.0,0.00010958,2]
[360651980,1746916241910,-400.0,0.00010958,2]
[360651982,1746916241920,-400.0,0.00010958,2]
[360651984,1746916241930,-1095.7,0.00010958,2]
[360651986,1746916241939,-400.0,0.00010958,2]
[360651988,1746916241949,-327.84,0.00010958,2]
[360651990,1746916241959,-400.0,0.00010958,2]
[360651992,1746916241968,-495.15,0.00010958,2]
[360651994,1746916241978,-572.03,0.00010958,2]
[360651996,1746916241988,-400.0,0.00010958,2]
[360651998,1746916241997,-400.0,0.00010958,2]
[360652000,1746916242007,-400.0,0.00010958,2]
[360652002,1746916242016,-400.0,0.00010958,2]
[360652004,1746916242027,-415.97,0.00010958,2]
[360652006,1746916242036,-400.0,0.00010958,2]
[360652008,1746916242046,-1000.0,0.00010959,2]
[360652010,1746916242055,-15156.2365112,0.00010959,2]
[360652012,1746916242065,-690.70934005,0.00010959,2]
[360652014,1746916242075,-690.70934005,0.00010959,2]
[360652016,1746916242084,-690.70934005,0.00010959,2]
[360652018,1746916242093,-690.70934005,0.00010959,2]
[360652020,1746916242103,-690.70934005,0.00010959,2]
[360652022,1746916242112,-690.70934005,0.00010959,2]
[360652024,1746916242122,-690.70934005,0.00010959,2]
[360652026,1746916242132,-690.70934005,0.00010959,2]
[360652028,1746916242141,-690.70934005,0.00010959,2]
[360652030,1746916242151,-690.70934005,0.00010959,2]
[360652032,1746916242161,-690.70934005,0.00010959,2]
[360652034,1746916242172,-690.70934005,0.00010959,2]
[360652036,1746916242182,-690.70934005,0.00010959,2]
[360652038,1746916242191,-690.70934005,0.00010959,2]
[360652040,1746916242202,-690.70934005,0.00010959,2]
[360652042,1746916242212,-690.70934005,0.00010959,2]
[360652044,1746916242225,-690.70934005,0.00010959,2]
[360652046,1746916242234,-690.70934005,0.00010959,2]
[360652049,1746916242244,-690.70934005,0.00010959,2]
[360652050,1746916242254,-690.70934005,0.00010959,2]
[360652052,1746916242264,-690.70934005,0.00010959,2]
[360652055,1746916242274,-690.70934005,0.00010959,2]
[360652057,1746916242283,-690.70934005,0.00010959,2]
[360652059,1746916242293,-690.70934005,0.00010959,2]
[360652061,1746916242302,-690.70934005,0.00010959,2]
[360652063,1746916242312,-690.70934005,0.00010959,2]
[360652065,1746916242322,-690.70934005,0.00010959,2]
[360652067,1746916242332,-690.70934005,0.00010959,2]
[360652068,1746916242341,-690.70934005,0.00010959,2]
[360652070,1746916242351,-687.07402774,0.00010959,2]
[360652072,1746916242361,-687.07402774,0.00010959,2]
[360652075,1746916242371,-687.07402774,0.00010959,2]
[360652077,1746916242381,-687.07402774,0.00010959,2]
[360652079,1746916242391,-687.07402774,0.00010959,2]
[360652081,1746916242400,-687.07402774,0.00010959,2]
[360652083,1746916242410,-687.07402774,0.00010959,2]
[360652085,1746916242420,-687.07402774,0.00010959,2]
[360652087,1746916242430,-687.07402774,0.00010959,2]
[360652089,1746916242440,-687.07402774,0.00010959,2]
[360652091,1746916242450,-687.07402774,0.00010959,2]
[360652093,1746916242459,-687.07402774,0.00010959,2]
[360652095,1746916242472,-687.07402774,0.00010959,2]
[360652097,1746916242482,-687.07402774,0.00010959,2]
[360652099,1746916242491,-687.07402774,0.00010959,2]
[360652101,1746916242501,-687.07402774,0.00010959,2]
[360652103,1746916242512,-687.07402774,0.00010959,2]
[360652105,1746916242522,-687.07402774,0.00010959,2]
[360652107,1746916242532,-687.07402774,0.00010959,2]
[360652109,1746916242541,-687.07402774,0.00010959,2]
[360652111,1746916242553,-687.07402774,0.00010959,2]
[360652113,1746916242563,-125.56246508,0.00010959,2]
[360652135,1746916242757,-561.51156266,0.00010959,2]
[360652137,1746916242767,-687.07402774,0.00010959,2]
[360652139,1746916242777,-687.07402774,0.00010959,2]
[360652141,1746916242787,-687.07402774,0.00010959,2]
[360652143,1746916242798,-687.07402774,0.00010959,2]
[360652145,1746916242808,-687.07402774,0.00010959,2]
[360652147,1746916242818,-682.64129208,0.00010959,2]
[360652149,1746916242827,-682.64129208,0.00010959,2]
[360652151,1746916242837,-682.64129208,0.00010959,2]
[360652153,1746916242847,-682.64129208,0.00010959,2]
[360652155,1746916242856,-682.64129208,0.00010959,2]
[360652157,1746916242865,-682.64129208,0.00010959,2]
[360652159,1746916242875,-682.64129208,0.00010959,2]
[360652161,1746916242884,-682.64129208,0.00010959,2]
[360652163,1746916242894,-682.64129208,0.00010959,2]
[360652165,1746916242905,-682.64129208,0.00010959,2]
[360652167,1746916242914,-682.64129208,0.00010959,2]
[360652170,1746916242925,-682.64129208,0.00010959,2]
[360652172,1746916242935,-682.64129208,0.00010959,2]
[360652174,1746916242944,-682.64129208,0.00010959,2]
[360652176,1746916242954,-682.64129208,0.00010959,2]
[360652177,1746916242964,-682.64129208,0.00010959,2]
[360652180,1746916242974,-682.64129208,0.00010959,2]
[360652182,1746916242985,-667.47148559,0.00010959,2]
[360652184,1746916242995,-667.47148559,0.00010959,2]
[360652186,1746916243005,-667.47148559,0.00010959,2]
[360652188,1746916243014,-667.47148559,0.00010959,2]
[360652190,1746916243024,-667.47148559,0.00010959,2]
[360652192,1746916243034,-667.47148559,0.00010959,2]
[360652194,1746916243043,-667.47148559,0.00010959,2]
[360652196,1746916243053,-667.47148559,0.00010959,2]
[360652198,1746916243063,-667.47148559,0.00010959,2]
[360652200,1746916243072,-667.47148559,0.00010959,2]
[360652202,1746916243081,-667.47148559,0.00010959,2]
[360652204,1746916243091,-667.47148559,0.00010959,2]
[360652206,1746916243100,-667.47148559,0.00010959,2]
[360652208,1746916243109,-667.47148559,0.00010959,2]
[360652210,1746916243119,-667.47148554,0.00010959,2]
[360652212,1746916243128,-151.0,0.00011,2]
[360652214,1746916243139,-151.0,0.00011,2]
[360652216,1746916243148,-151.0,0.00011,2]
[360652218,1746916243158,-151.0,0.00011,2]
[360652220,1746916243168,-322.612,0.00011,2]
[360652222,1746916243178,-176.817,0.00011,2]
[360652224,1746916243188,-151.0,0.00011,2]
[360652226,1746916243198,-151.0,0.00011,2]
[360652228,1746916243208,-2009.99612774,0.00011,2]
[360652258,1746916243494,-400.0,8.219e-05,2]
[360652260,1746916243505,-400.0,8.219e-05,2]
[360652262,1746916243515,-400.0,8.219e-05,2]
[360652264,1746916243525,-400.0,8.493e-05,2]
[360652266,1746916243535,-400.0,8.493e-05,2]
[360652268,1746916243546,-377.01393198,8.767e-05,2]
[360652271,1746916243560,-22.98606802,8.767e-05,2]
[360652273,1746916243570,-400.0,8.767e-05,2]
[360652275,1746916243580,-400.0,9.041e-05,2]
[360652277,1746916243591,-400.0,9.041e-05,2]
[360652279,1746916243600,-12.40570133,9.315e-05,2]
[360652281,1746916243612,-387.59429867,9.315e-05,2]
[360652283,1746916243623,-400.0,9.315e-05,2]
[360652285,1746916243633,-400.0,9.589e-05,2]
[360652287,1746916243644,-400.0,9.589e-05,2]
[360652290,1746916243655,-400.0,9.863e-05,2]
[360652292,1746916243664,-230.92916633,9.863e-05,2]
[360652294,1746916243677,-276.83083367,9.863e-05,2]
[360652296,1746916243687,-400.0,0.00010136,2]
[360652298,1746916243698,-400.0,0.0001041,2]
[360652300,1746916243709,-400.0,0.00010684,2]
[360652302,1746916243720,-400.0,0.00010958,2]
[360652304,1746916243731,-1705.19226731,0.00011,2]
[360652306,1746916243741,-400.0,0.00011232,2]
[360652308,1746916243752,-400.0,0.00011232,2]
[360652311,1746916243763,-345.75,0.00011232,2]
[360652313,1746916243773,-1095.7,0.00011232,2]
[360652315,1746916243784,-363.29,0.00011232,2]
[360652317,1746916243794,-322.80800384,0.00011232,2]
[360652564,1746916245832,-3475.68456421,8.767e-05,2]
[360652566,1746916245842,-3475.6845642,9.525e-05,2]
[360652568,1746916245854,-3475.6845642,0.00010184,2]
[360652570,1746916245864,-77.19199616,0.00011232,2]
[360652573,1746916245874,-495.15,0.00011232,2]
[360652575,1746916245885,-572.03,0.00011232,2]
[360652577,1746916245895,-400.0,0.00011232,2]
[360652579,1746916245906,-400.0,0.00011232,2]
[360652581,1746916245916,-400.0,0.00011232,2]
[360652583,1746916245926,-400.0,0.00011232,2]
[360652585,1746916245937,-415.97,0.00011232,2]
[360652587,1746916245947,-400.0,0.00011232,2]
[360652589,1746916245958,-400.0,0.00011232,2]
[360652591,1746916245968,-151.0,0.000113,2]
[360652593,1746916245978,-151.0,0.000113,2]
[360652595,1746916245988,-151.0,0.000113,2]
[360652597,1746916245999,-151.0,0.000115,2]
[360652599,1746916246008,-151.0,0.000115,2]
[360652601,1746916246019,-151.0,0.000115,2]
[360652603,1746916246029,-151.0,0.000115,2]
[360652605,1746916246039,-151.0,0.000115,2]
[360652607,1746916246049,-151.0,0.000115,2]
[360652609,1746916246059,-4992.11745799,0.00011506,2]
[360653137,1746916459119,153.18,0.000169,31]
[360653138,1746916459299,153.18,0.000169,31]
[360653139,1746916459339,153.18,0.000169,31]
[360653140,1746916459452,153.18,0.000169,31]
[360653141,1746916459506,153.18,0.000169,31]
[360653142,1746916459553,153.18,0.000169,31]
[360653143,1746916459594,153.18,0.000169,31]
[360653156,1746916920857,10000.0,8.02e-05,2]
[360653157,1746916932226,10000.0,8.02e-05,2]
[360653158,1746916944640,7253.4,8.02e-05,2]
[360653160,1746917064768,153.19,0.000169,31]
[360653161,1746917064820,153.19,0.000169,31]
[360653162,1746917064884,153.19,0.000169,31]
[360653163,1746917064947,153.19,0.000169,31]
[360653164,1746917065035,153.19,0.000169,31]
[360653165,1746917065254,153.19,0.000169,31]
[360653166,1746917065440,153.19,0.000169,31]
[360653167,1746917108991,9161.95257225,8e-05,2]
[360653169,1746917235308,5532.72687539,8e-05,7]
[360653904,1746917438905,-300.0,8.208e-05,2]
[360653906,1746917438916,-1200.0,8.208e-05,2]
[360653908,1746917438927,-18653.47918868,8.209e-05,2]
[360653910,1746917438949,-9458.17673771,8.209e-05,2]
[360653912,1746917438964,-400.0,8.219e-05,2]
[360653914,1746917438977,-400.0,8.219e-05,2]
[360653916,1746917438988,-400.0,8.219e-05,2]
[360653918,1746917438997,-400.0,8.219e-05,2]
[360653920,1746917439007,-504.75964231,8.219e-05,2]
[360653922,1746917439017,-400.0,8.219e-05,2]
[360653924,1746917439026,-406.74767937,8.219e-05,2]
[360653926,1746917439035,-400.0,8.219e-05,2]
[360653928,1746917439045,-195.26773278,8.219e-05,2]
[360653930,1746917439057,-204.73226722,8.219e-05,2]
[360653932,1746917439067,-400.0,8.219e-05,2]
[360653934,1746917439076,-408.06887972,8.219e-05,2]
[360653936,1746917439085,-407.87401806,8.219e-05,2]
[360653938,1746917439094,-294.91236215,8.219e-05,2]
[360653940,1746917439103,-400.0,8.219e-05,2]
[360653942,1746917439112,-400.0,8.219e-05,2]
[360653944,1746917439122,-402.5762276,8.219e-05,2]
[360653946,1746917439131,-400.0,8.219e-05,2]
[360653948,1746917439141,-400.0,8.219e-05,2]
[360653950,1746917439151,-400.0,8.219e-05,2]
[360653952,1746917439160,-507.91441869,8.219e-05,2]
[360653954,1746917439169,-400.0,8.219e-05,2]
[360653956,1746917439181,-400.0,8.219e-05,2]
[360653958,1746917439191,-387.63388045,8.219e-05,2]
[360654512,1746917445411,-20.7616676,8.219e-05,2]
[360654514,1746917445422,-400.0,8.219e-05,2]
[360654516,1746917445432,-400.0,8.219e-05,2]
[360654518,1746917445443,-306.31585187,8.219e-05,2]
[360654520,1746917445452,-402.55557749,8.219e-05,2]
[360654522,1746917445462,-400.0,8.219e-05,2]
[360654524,1746917445471,-402.33079682,8.219e-05,2]
[360654526,1746917445480,-400.0,8.219e-05,2]
[360654528,1746917445490,-400.0,8.219e-05,2]
[360654530,1746917445500,-404.94204184,8.219e-05,2]
[360654532,1746917445510,-212.6441402,8.219e-05,2]
[360654534,1746917445519,-418.28866978,8.219e-05,2]
[360654536,1746917445528,-400.0,8.219e-05,2]
[360654538,1746917445538,-400.0,8.219e-05,2]
[360654540,1746917445547,-404.48309821,8.219e-05,2]
[360654542,1746917445557,-400.0,8.219e-05,2]
[360654544,1746917445566,-400.0,8.219e-05,2]
[360654546,1746917445576,-403.4040547,8.219e-05,2]
[360654548,1746917445585,-400.0,8.219e-05,2]
[360654550,1746917445595,-538.14895932,8.219e-05,2]